[Event "LTU-chT 2020"]
[Site "Vilnius"]
[Date "2020.09.27"]
[Round "6.2"]
[White "Kalvaitis, Sigitas"]
[Black "Pultinevicius, Paulius"]
[Result "0-1"]
[ECO "B11"]
[WhiteElo "2180"]
[BlackElo "2510"]
[Annotator "ChessBase"]
[PlyCount "77"]
[EventDate "2020.09.25"]
[EventType "team-tourn"]
[EventCountry "LTU"]
[SourceTitle "playchess.com"]
[Source "ChessBase"]
[SourceQuality "1"]
[TimeControl "40/5400+30:1800+30"]

1. e4 {[%emt 0:00:00]} c6 {[%emt 0:00:00]} 2. Nf3 {[%emt 0:00:03]} d5 {[%emt 0:00:00]} 3. Nc3 {[%emt 0:00:03]} Bg4 {[%emt 0:00:15]} 4. h3 {[%emt 0:00:12]} Bxf3 {[%emt 0:00:06]} 5. Qxf3 {[%emt 0:00:05]} e6 {[%emt 0:00:06]} 6. d3 {[%emt 0:01:48]} Nf6 {[%emt 0:00:07]} 7. Be2 {[%emt 0:00:20]} Nbd7 {[%emt 0:08:26]} 8. O-O {[%emt 0:01:57]} Bc5 {[%emt 0:01:46]} 9. Rd1 {[%emt 0:02:29]} Bd4 {[%emt 0:01:58]} 10. Be3 {[%emt 0:07:29]} Bxe3 {[%emt 0:00:06]} 11. Qxe3 {[%emt 0:00:07]} Qb6 {[%emt 0:00:07]} 12. d4 {[%emt 0:05:49]} Nxe4 {[%emt 0:00:59]} 13. Nxe4 {[%emt 0:00:13]} dxe4 {[%emt 0:00:05]} 14. Qxe4 {[%emt 0:00:03]} Nf6 {[%emt 0:00:10]} 15. Qe5 {[%emt 0:01:40]} Rd8 {[%emt 0:04:45]} 16. Rab1 {[%emt 0:07:12]} O-O {[%emt 0:03:47]} 17. c3 {[%emt 0:01:33]} Rd5 {[%emt 0:03:38]} 18. Qe3 {[%emt 0:02:00]} e5 {[%emt 0:01:05]} 19. Bc4 {[%emt 0:03:48]} exd4 {[%emt 0:01:04]} 20. Rxd4 {[%emt 0:00:43]} Rxd4 {[%emt 0:00:59]} 21. Qxd4 {[%emt 0:00:21]} Qxd4 {[%emt 0:00:13]} 22. cxd4 {[%emt 0:00:02]} Rd8 {[%emt 0:00:13]} 23. Rd1 {[%emt 0:00:05]} c5 {[%emt 0:01:45]} 24. d5 {[%emt 0:05:31]} Ne4 {[%emt 0:00:29]} 25. a4 {[%emt 0:02:31]} Nd6 {[%emt 0:04:11]} 26. Bd3 {[%emt 0:07:07]} Kf8 {[%emt 0:01:33]} 27. a5 {[%emt 0:01:13]} c4 {[%emt 0:00:37]} 28. Be2 {[%emt 0:01:27]} Rc8 {[%emt 0:00:35]} 29. Rd4 {[%emt 0:01:11]} Rc5 {[%emt 0:00:42]} 30. Kf1 {[%emt 0:00:18]} Rxa5 {[%emt 0:01:15]} 31. Bxc4 {[%emt 0:00:23]} Ra4 {[%emt 0:00:14]} 32. b3 {[%emt 0:00:13]} Rb4 {[%emt 0:00:19]} 33. Rd1 {[%emt 0:04:02]} a5 {[%emt 0:00:41]} 34. Ke2 {[%emt 0:01:34]} Ke7 {[%emt 0:02:56]} 35. Kd2 {[%emt 0:00:41]} Nxc4+ {[%emt 0:02:03]} 36. bxc4 {[%emt 0:00:07]} Rxc4 {[%emt 0:00:02]} 37. Kd3 {[%emt 0:00:37]} Rc5 {[%emt 0:00:07]} 38. Ke4 {[%emt 0:00:25]} Kd6 {[%emt 0:00:18]} 39. Kd4 0-1

[Event "LTU-chT 2020"]
[Site "Vilnius"]
[Date "2020.09.27"]
[Round "6.3"]
[White "Vedrickas, Tautvydas"]
[Black "Vasylius, Kestutis"]
[Result "1/2-1/2"]
[ECO "E48"]
[WhiteElo "2399"]
[BlackElo "2045"]
[Annotator "ChessBase"]
[PlyCount "177"]
[EventDate "2020.09.25"]
[EventType "team-tourn"]
[EventCountry "LTU"]
[SourceTitle "playchess.com"]
[Source "ChessBase"]
[SourceQuality "1"]
[TimeControl "40/5400+30:1800+30"]

1. d4 {[%emt 0:03:45]} Nf6 {[%emt 0:00:13]} 2. c4 {[%emt 0:00:48]} e6 {[%emt 0:00:34]} 3. Nc3 {[%emt 0:00:18]} Bb4 {[%emt 0:00:45]} 4. e3 {[%emt 0:03:03]} O-O {[%emt 0:01:39]} 5. Bd3 {[%emt 0:01:41]} d5 {[%emt 0:02:04]} 6. Nge2 {[%emt 0:01:52]} dxc4 {[%emt 0:02:30]} 7. Bxc4 {[%emt 0:00:02]} a6 {[%emt 0:00:21]} 8. a3 {[%emt 0:05:47]} Be7 {[%emt 0:01:51]} 9. Nf4 {[%emt 0:08:53]} b5 {[%emt 0:03:46]} 10. Qf3 {[%emt 0:06:35]} Ra7 {[%emt 0:01:11]} 11. Ba2 {[%emt 0:03:20]} c5 {[%emt 0:04:04]} 12. O-O {[%emt 0:00:37]} cxd4 {[%emt 0:02:13]} 13. exd4 {[%emt 0:00:04]} Bb7 {[%emt 0:17:35]} 14. Qh3 {[%emt 0:00:45]} Qd6 {[%emt 0:02:31]} 15. Re1 {[%emt 0:05:38]} Re8 {[%emt 0:10:29]} 16. Bd2 {[%emt 0:07:52]} Bc8 {[%emt 0:05:42]} 17. Rad1 {[%emt 0:09:17]} Nbd7 {[%emt 0:03:47]} 18. Rxe6 {[%emt 0:06:37]} Nf8 {[%emt 0:01:00]} 19. Rxd6 {[%emt 0:00:36]} Bxh3 {[%emt 0:00:09]} 20. Rxf6 {[%emt 0:00:36]} Bxf6 {[%emt 0:00:31]} 21. Nxh3 {[%emt 0:00:26]} Bxd4 {[%emt 0:00:25]} 22. Ng5 {[%emt 0:09:29]} h6 {[%emt 0:03:59]} 23. Nf3 {[%emt 0:00:16]} Bf6 {[%emt 0:00:24]} 24. Be3 {[%emt 0:00:18]} Rd7 {[%emt 0:01:07]} 25. Rxd7 {[%emt 0:00:55]} Nxd7 {[%emt 0:00:12]} 26. g3 {[%emt 0:02:53]} Ne5 {[%emt 0:02:23]} 27. Nxe5 {[%emt 0:03:04]} Bxe5 {[%emt 0:00:43]} 28. Bd5 {[%emt 0:00:23]} Rb8 {[%emt 0:02:31]} 29. f4 {[%emt 0:03:45]} Bf6 {[%emt 0:01:10]} 30. Bc5 {[%emt 0:06:12]} a5 {[%emt 0:02:18]} 31. Kg2 {[%emt 0:01:48]} b4 {[%emt 0:01:19]} 32. axb4 {[%emt 0:02:51]} axb4 {[%emt 0:00:35]} 33. Na4 {[%emt 0:00:28]} Rd8 {[%emt 0:00:50]} 34. Bc4 {[%emt 0:00:56]} Bxb2 {[%emt 0:00:39]} 35. Bxb4 {[%emt 0:00:39]} Bd4 {[%emt 0:00:27]} 36. Be2 {[%emt 0:02:20]} Ra8 {[%emt 0:02:04]} 37. Nc3 {[%emt 0:00:42]} Bxc3 {[%emt 0:01:16]} 38. Bxc3 {[%emt 0:00:02]} Ra3 {[%emt 0:00:20]} 39. Bd4 {[%emt 0:00:21]} Rb3 {[%emt 0:00:50]} 40. h4 {[%emt 0:00:22]} Ra3 {[%emt 0:01:09]} 41. Kh3 {[%emt 0:30:31]} Ra2 {[%emt 0:31:35]} 42. Bf3 {[%emt 0:00:39]} Ra3 {[%emt 0:00:18]} 43. Kg2 {[%emt 0:00:15]} Ra2+ {[%emt 0:00:25]} 44. Bf2 {[%emt 0:00:03]} Ra4 {[%emt 0:00:33]} 45. f5 {[%emt 0:00:40]} Ra5 {[%emt 0:01:47]} 46. Be4 {[%emt 0:00:45]} Ra3 {[%emt 0:00:30]} 47. Bc5 {[%emt 0:01:25]} Rc3 {[%emt 0:00:46]} 48. Bd6 {[%emt 0:00:37]} Re3 {[%emt 0:00:43]} 49. Bf3 {[%emt 0:00:01]} Rd3 {[%emt 0:00:20]} 50. Bf4 {[%emt 0:00:03]} Ra3 {[%emt 0:00:16]} 51. Kf2 {[%emt 0:01:13]} Rb3 {[%emt 0:01:32]} 52. Be4 {[%emt 0:00:12]} Ra3 {[%emt 0:00:54]} 53. Ke2 {[%emt 0:00:09]} Rb3 {[%emt 0:00:53]} 54. Bd3 {[%emt 0:00:09]} Ra3 {[%emt 0:01:00]} 55. Ke3 {[%emt 0:00:10]} Ra4 {[%emt 0:00:45]} 56. Be4 {[%emt 0:01:38]} Rb4 {[%emt 0:01:29]} 57. Bd5 {[%emt 0:00:30]} Ra4 {[%emt 0:00:22]} 58. Kd3 {[%emt 0:00:47]} Rb4 {[%emt 0:00:41]} 59. Bc4 {[%emt 0:00:10]} Ra4 {[%emt 0:00:22]} 60. Kd4 {[%emt 0:00:35]} Rb4 {[%emt 0:00:31]} 61. Kc5 {[%emt 0:00:42]} Rb1 {[%emt 0:00:35]} 62. Bd5 {[%emt 0:02:19]} Ra1 {[%emt 0:01:24]} 63. Kc6 {[%emt 0:00:00]} Rd1 {[%emt 0:00:00]} 64. Kd6 {[%emt 0:00:00]} Kf8 {[%emt 0:00:00]} 65. f6 {[%emt 0:00:00]} Re1 {[%emt 0:00:00]} 66. h5 {[%emt 0:00:00]} Re2 {[%emt 0:00:00]} 67. Kd7 {[%emt 0:00:00]} Re1 {[%emt 0:00:00]} 68. Bb3 {[%emt 0:00:00]} Re2 {[%emt 0:00:00]} 69. Bd6+ {[%emt 0:00:00]} Kg8 {[%emt 0:00:00]} 70. Bf4 {[%emt 0:00:00]} Kf8 {[%emt 0:00:00]} 71. Kd6 {[%emt 0:00:00]} Re1 {[%emt 0:00:00]} 72. Bc4 {[%emt 0:00:00]} Re4 {[%emt 0:00:00]} 73. Bb3 {[%emt 0:01:54]} Re1 {[%emt 0:00:00]} 74. Bd5 {[%emt 0:00:04]} Re2 {[%emt 0:00:00]} 75. g4 {[%emt 0:00:10]} Rf2 {[%emt 0:00:00]} 76. fxg7+ {[%emt 0:00:26]} Kxg7 {[%emt 0:00:00]} 77. Be3 {[%emt 0:00:42]} Re2 {[%emt 0:00:00]} 78. Bd4+ {[%emt 0:00:17]} f6 {[%emt 0:00:00]} 79. Be6 {[%emt 0:02:40]} Rd2 {[%emt 0:00:00]} 80. Kd5 {[%emt 0:00:01]} Rd1 {[%emt 0:00:00]} 81. Bf5 {[%emt 0:00:19]} Re1 {[%emt 0:00:00]} 82. Kc4 {[%emt 0:01:01]} Rd1 {[%emt 0:00:00]} 83. Kc3 {[%emt 0:00:05]} Ra1 {[%emt 0:00:00]} 84. Bd3 {[%emt 0:00:57]} Ra2 {[%emt 0:00:00]} 85. Bc2 {[%emt 0:00:33]} Ra1 {[%emt 0:00:00]} 86. Kd3 {[%emt 0:00:15]} Ra2 {[%emt 0:00:00]} 87. Bd1 {[%emt 0:00:26]} Ra5 {[%emt 0:00:00]} 88. Ke4 {[%emt 0:00:08]} Rb5 {[%emt 0:00:00]} 89. Bc2 {[%emt 0:01:12]} 1/2-1/2

[Event "LTU-chT 2020"]
[Site "Vilnius"]
[Date "2020.09.27"]
[Round "6.4"]
[White "Maciuitis, Ignas"]
[Black "Sakalauskas, Vaidas"]
[Result "0-1"]
[ECO "B27"]
[WhiteElo "1844"]
[BlackElo "2331"]
[Annotator "ChessBase"]
[PlyCount "76"]
[EventDate "2020.09.25"]
[EventType "team-tourn"]
[EventCountry "LTU"]
[SourceTitle "playchess.com"]
[Source "ChessBase"]
[SourceQuality "1"]
[TimeControl "40/5400+30:1800+30"]

1. e4 {[%emt 0:00:00]} c5 {[%emt 0:00:00]} 2. Nf3 {[%emt 0:00:00]} g6 {[%emt 0:00:09]} 3. g3 {[%emt 0:00:00]} Bg7 {[%emt 0:00:19]} 4. Bg2 {[%emt 0:00:00]} Nf6 {[%emt 0:00:38]} 5. Nc3 {[%emt 0:04:37]} Nc6 {[%emt 0:00:37]} 6. O-O {[%emt 0:00:11]} d5 {[%emt 0:00:49]} 7. exd5 {[%emt 0:07:17]} Nxd5 {[%emt 0:00:08]} 8. Nxd5 {[%emt 0:00:43]} Qxd5 {[%emt 0:00:18]} 9. d3 {[%emt 0:08:58]} O-O {[%emt 0:01:47]} 10. Re1 {[%emt 0:02:47]} Qh5 {[%emt 0:11:20]} 11. Ng5 {[%emt 0:05:25]} Qxd1 {[%emt 0:03:11]} 12. Rxd1 {[%emt 0:00:01]} Nd4 {[%emt 0:00:42]} 13. Rd2 {[%emt 0:04:58]} Rb8 {[%emt 0:11:55]} 14. c3 {[%emt 0:01:20]} Ne6 {[%emt 0:01:39]} 15. Re2 {[%emt 0:00:35]} Nxg5 {[%emt 0:13:15]} 16. Bxg5 {[%emt 0:00:23]} f6 {[%emt 0:00:03]} 17. Bd5+ {[%emt 0:05:57]} Kh8 {[%emt 0:00:19]} 18. Bd2 {[%emt 0:00:53]} e5 19. f4 {[%emt 0:01:34]} Bf5 {[%emt 0:15:36]} 20. Be4 {[%emt 0:20:03]} Bxe4 {[%emt 0:03:56]} 21. dxe4 {[%emt 0:00:29]} Rbe8 {[%emt 0:09:27]} 22. Rae1 {[%emt 0:01:07]} Rf7 {[%emt 0:00:29]} 23. Kg2 {[%emt 0:02:15]} Rd7 {[%emt 0:00:29]} 24. Bc1 {[%emt 0:00:46]} Bh6 {[%emt 0:03:36]} 25. Kf3 {[%emt 0:07:24]} Red8 {[%emt 0:00:33]} 26. h4 {[%emt 0:01:20]} Kg7 {[%emt 0:02:00]} 27. Kg4 {[%emt 0:06:57]} Rd3 {[%emt 0:02:55]} 28. Rf1 {[%emt 0:01:13]} R8d7 {[%emt 0:01:27]} 29. Rff2 {[%emt 0:01:51]} b6 {[%emt 0:05:12]} 30. Rd2 {[%emt 0:01:21]} Bxf4 {[%emt 0:00:32]} 31. Rxd3 {[%emt 0:00:53]} Rxd3 {[%emt 0:00:38]} 32. Bxf4 {[%emt 0:00:11]} h5+ {[%emt 0:00:06]} 33. Kh3 {[%emt 0:00:08]} exf4 {[%emt 0:00:05]} 34. Rxf4 {[%emt 0:00:59]} Rd2 {[%emt 0:00:05]} 35. Rf3 {[%emt 0:00:36]} Rxb2 {[%emt 0:00:57]} 36. Rd3 {[%emt 0:00:10]} Rxa2 {[%emt 0:00:17]} 37. Rd7+ {[%emt 0:00:10]} Kh6 {[%emt 0:00:07]} 38. Rf7 {[%emt 0:00:28]} Ra4 {[%emt 0:00:12]} 0-1

[Event "LTU-chT 2020"]
[Site "Vilnius"]
[Date "2020.09.27"]
[Round "6.5"]
[White "Setkauskas, Vaidas"]
[Black "Kurmis, Edvinas"]
[Result "1-0"]
[ECO "C65"]
[WhiteElo "2238"]
[BlackElo "1622"]
[Annotator "ChessBase"]
[PlyCount "67"]
[EventDate "2020.09.25"]
[EventType "team-tourn"]
[EventCountry "LTU"]
[SourceTitle "playchess.com"]
[Source "ChessBase"]
[SourceQuality "1"]
[TimeControl "40/5400+30:1800+30"]

1. e4 {[%emt 0:00:00]} e5 {[%emt 0:00:00]} 2. Nf3 {[%emt 0:00:32]} Nc6 {[%emt 0:00:00]} 3. Bb5 {[%emt 0:01:02]} Nf6 {[%emt 0:00:00]} 4. d3 {[%emt 0:01:03]} d6 {[%emt 0:01:28]} 5. O-O {[%emt 0:00:40]} a6 {[%emt 0:00:48]} 6. Ba4 {[%emt 0:00:27]} b5 {[%emt 0:00:46]} 7. Bb3 {[%emt 0:00:08]} Be7 {[%emt 0:01:19]} 8. c3 {[%emt 0:00:17]} Bg4 {[%emt 0:01:15]} 9. h3 {[%emt 0:01:12]} Bh5 {[%emt 0:00:15]} 10. Re1 {[%emt 0:00:26]} O-O {[%emt 0:01:36]} 11. Nbd2 {[%emt 0:00:11]} Na5 {[%emt 0:02:01]} 12. Bc2 {[%emt 0:00:18]} c5 {[%emt 0:02:13]} 13. Nf1 {[%emt 0:00:06]} Nb7 {[%emt 0:02:04]} 14. g4 {[%emt 0:07:58]} Bg6 {[%emt 0:01:44]} 15. Ng3 {[%emt 0:00:43]} h6 {[%emt 0:09:39]} 16. Nh4 {[%emt 0:02:58]} Bh7 {[%emt 0:04:31]} 17. Nhf5 {[%emt 0:00:22]} Bxf5 {[%emt 0:02:29]} 18. Nxf5 {[%emt 0:01:48]} Nh7 {[%emt 0:04:36]} 19. Bb3 {[%emt 0:14:18]} Bg5 {[%emt 0:06:58]} 20. a4 {[%emt 0:02:31]} Bxc1 {[%emt 0:09:28]} 21. Qxc1 {[%emt 0:01:32]} Ng5 {[%emt 0:01:13]} 22. Qe3 {[%emt 0:05:08]} Ne6 {[%emt 0:15:30]} 23. axb5 {[%emt 0:09:04]} axb5 {[%emt 0:04:55]} 24. Rxa8 {[%emt 0:01:00]} Qxa8 {[%emt 0:00:10]} 25. Bd5 {[%emt 0:00:03]} Rd8 {[%emt 0:02:28]} 26. Ne7+ {[%emt 0:23:43]} Kf8 {[%emt 0:04:28]} 27. Ng6+ {[%emt 0:00:43]} fxg6 {[%emt 0:00:54]} 28. Bxe6 {[%emt 0:00:02]} Ke7 {[%emt 0:01:04]} 29. Bd5 {[%emt 0:00:17]} Rf8 {[%emt 0:03:36]} 30. d4 {[%emt 0:00:44]} exd4 {[%emt 0:08:53]} 31. cxd4 {[%emt 0:00:09]} Qa7 {[%emt 0:00:18]} 32. e5 {[%emt 0:01:20]} cxd4 {[%emt 0:03:06]} 33. exd6+ {[%emt 0:00:09]} Kxd6 {[%emt 0:00:04]} 34. Qe5+ {[%emt 0:00:59]} 1-0

[Event "LTU-chT 2020"]
[Site "Vilnius"]
[Date "2020.09.27"]
[Round "6.6"]
[White "Chocenka, Dmitrijus"]
[Black "Juksta, Karolis"]
[Result "1-0"]
[ECO "C11"]
[WhiteElo "2333"]
[BlackElo "2394"]
[Annotator "ChessBase"]
[PlyCount "147"]
[EventDate "2020.09.25"]
[EventType "team-tourn"]
[EventCountry "LTU"]
[SourceTitle "playchess.com"]
[Source "ChessBase"]
[SourceQuality "1"]
[TimeControl "40/5400+30:1800+30"]

1. e4 {[%emt 0:00:00]} e6 {[%emt 0:00:00]} 2. d4 {[%emt 0:00:00]} d5 {[%emt 0:00:00]} 3. Nc3 {[%emt 0:00:00]} Nf6 {[%emt 0:00:00]} 4. e5 {[%emt 0:00:00]} Nfd7 {[%emt 0:00:00]} 5. f4 {[%emt 0:00:00]} c5 {[%emt 0:00:05]} 6. Nf3 {[%emt 0:00:00]} Nc6 {[%emt 0:00:22]} 7. Be3 {[%emt 0:00:02]} Be7 {[%emt 0:02:59]} 8. Qd2 {[%emt 0:01:22]} O-O {[%emt 0:03:10]} 9. dxc5 {[%emt 0:01:31]} Qa5 {[%emt 0:00:15]} 10. Nb5 {[%emt 0:03:08]} Qxd2+ {[%emt 0:03:58]} 11. Kxd2 {[%emt 0:00:20]} Nxc5 {[%emt 0:00:54]} 12. Bd3 {[%emt 0:01:51]} Bd7 {[%emt 0:08:23]} 13. Nbd4 {[%emt 0:00:31]} Rac8 {[%emt 0:04:31]} 14. a3 {[%emt 0:06:07]} Na5 {[%emt 0:06:02]} 15. Ke2 {[%emt 0:07:35]} Nc4 {[%emt 0:05:18]} 16. Bc1 {[%emt 0:08:09]} Ne4 {[%emt 0:16:12]} 17. b3 {[%emt 0:02:52]} Na5 {[%emt 0:02:19]} 18. Be3 {[%emt 0:03:53]} f5 {[%emt 0:01:27]} 19. Rhg1 {[%emt 0:04:42]} b6 {[%emt 0:05:32]} 20. g4 {[%emt 0:02:55]} Nb7 {[%emt 0:05:19]} 21. gxf5 {[%emt 0:06:58]} exf5 {[%emt 0:00:18]} 22. Rg2 {[%emt 0:12:31]} Nbc5 {[%emt 0:06:21]} 23. Rag1 {[%emt 0:04:39]} g6 {[%emt 0:00:36]} 24. h4 {[%emt 0:00:54]} Ne6 {[%emt 0:08:11]} 25. Nxe6 {[%emt 0:08:46]} Bxe6 {[%emt 0:00:14]} 26. h5 {[%emt 0:00:31]} g5 {[%emt 0:05:29]} 27. Nd4 {[%emt 0:13:14]} Bf7 {[%emt 0:10:10]} 28. Rh2 {[%emt 0:00:09]} Be8 {[%emt 0:01:33]} 29. Ne6 {[%emt 0:00:20]} g4 {[%emt 0:00:54]} 30. Nxf8 {[%emt 0:00:24]} Bxf8 {[%emt 0:00:52]} 31. a4 {[%emt 0:02:18]} Bb4 {[%emt 0:01:12]} 32. Bxe4 {[%emt 0:03:35]} dxe4 {[%emt 0:00:14]} 33. c4 {[%emt 0:00:04]} Kf7 {[%emt 0:01:25]} 34. Rd1 {[%emt 0:00:15]} Ke6 {[%emt 0:01:00]} 35. Bf2 {[%emt 0:00:23]} Bf7 {[%emt 0:01:03]} 36. Bh4 {[%emt 0:00:53]} Be8 {[%emt 0:01:03]} 37. Bg5 {[%emt 0:02:14]} Bc5 {[%emt 0:00:25]} 38. h6 {[%emt 0:00:48]} Bc6 {[%emt 0:00:15]} 39. Rg2 {[%emt 0:01:53]} e3 {[%emt 0:00:57]} 40. Rg3 {[%emt 0:00:07]} Rc7 {[%emt 0:00:22]} 41. Rxe3 {[%emt 0:30:14]} Bf3+ {[%emt 0:05:44]} 42. Rxf3 {[%emt 0:00:00]} gxf3+ {[%emt 0:00:05]} 43. Kxf3 {[%emt 0:00:00]} Rd7 {[%emt 0:00:06]} 44. Rxd7 {[%emt 0:00:00]} Kxd7 {[%emt 0:00:01]} 45. Ke2 {[%emt 0:00:00]} Ke6 {[%emt 0:07:24]} 46. Kd3 {[%emt 0:00:00]} Kd7 {[%emt 0:04:48]} 47. Kc3 {[%emt 0:00:00]} a5 {[%emt 0:00:21]} 48. Kd3 {[%emt 0:00:00]} Ke6 {[%emt 0:02:00]} 49. Ke2 {[%emt 0:00:00]} Kd7 {[%emt 0:02:28]} 50. Kf3 {[%emt 0:00:00]} Bf8 {[%emt 0:00:40]} 51. Bh4 {[%emt 0:00:00]} Bc5 {[%emt 0:07:23]} 52. Bf2 {[%emt 0:00:00]} Kc6 {[%emt 0:00:25]} 53. Bh4 {[%emt 0:00:00]} Kd7 {[%emt 0:00:31]} 54. Kg3 {[%emt 0:00:00]} Bf8 {[%emt 0:01:39]} 55. Bg5 {[%emt 0:00:00]} Bc5 {[%emt 0:00:34]} 56. Kg2 {[%emt 0:00:00]} Bf8 {[%emt 0:00:34]} 57. Kf3 {[%emt 0:00:32]} Ba3 {[%emt 0:01:06]} 58. Bh4 {[%emt 0:00:58]} Bf8 {[%emt 0:01:26]} 59. c5 {[%emt 0:01:37]} bxc5 {[%emt 0:01:09]} 60. Be1 {[%emt 0:00:05]} Bxh6 {[%emt 0:00:54]} 61. Bxa5 {[%emt 0:00:06]} Bf8 {[%emt 0:00:23]} 62. Be1 {[%emt 0:00:17]} Be7 {[%emt 0:00:32]} 63. Kg3 {[%emt 0:00:12]} Bd8 {[%emt 0:00:53]} 64. Kh3 {[%emt 0:00:08]} Ke6 {[%emt 0:01:00]} 65. Bh4 {[%emt 0:01:19]} Ba5 {[%emt 0:00:08]} 66. Bg5 {[%emt 0:00:58]} Be1 {[%emt 0:00:10]} 67. Bd8 {[%emt 0:00:13]} Kd7 {[%emt 0:00:43]} 68. Bb6 {[%emt 0:00:43]} Kc6 {[%emt 0:00:42]} 69. e6 {[%emt 0:01:28]} Kd6 {[%emt 0:00:49]} 70. a5 {[%emt 0:00:18]} Bxa5 {[%emt 0:00:11]} 71. Bxa5 {[%emt 0:00:05]} Kxe6 {[%emt 0:00:03]} 72. Kh4 {[%emt 0:00:27]} Kd5 {[%emt 0:00:15]} 73. Kg5 {[%emt 0:00:13]} Ke4 {[%emt 0:00:04]} 74. Bc7 {[%emt 0:00:05]} 1-0

[Event "LTU-chT 2020"]
[Site "Vilnius"]
[Date "2020.09.27"]
[Round "6.7"]
[White "Stremavicius, Pijus"]
[Black "Limontas, Martynas"]
[Result "0-1"]
[ECO "A04"]
[WhiteElo "2189"]
[BlackElo "2301"]
[Annotator "ChessBase"]
[PlyCount "58"]
[EventDate "2020.09.25"]
[EventType "team-tourn"]
[EventCountry "LTU"]
[SourceTitle "playchess.com"]
[Source "ChessBase"]
[SourceQuality "1"]
[TimeControl "40/5400+30:1800+30"]

1. Nf3 {[%emt 0:00:00]} Nc6 {[%emt 0:00:00]} 2. d4 {[%emt 0:04:04]} d5 {[%emt 0:00:23]} 3. e3 {[%emt 0:00:20]} Bg4 {[%emt 0:01:45]} 4. h3 {[%emt 0:00:42]} Bxf3 {[%emt 0:01:24]} 5. Qxf3 {[%emt 0:00:07]} e5 {[%emt 0:00:03]} 6. Bb5 {[%emt 0:01:19]} e4 {[%emt 0:11:44]} 7. Qe2 {[%emt 0:00:19]} a6 {[%emt 0:01:01]} 8. Bxc6+ {[%emt 0:00:08]} bxc6 {[%emt 0:00:02]} 9. c4 {[%emt 0:00:24]} f5 {[%emt 0:01:05]} 10. O-O {[%emt 0:01:09]} Nf6 {[%emt 0:00:06]} 11. f3 {[%emt 0:01:37]} Bd6 {[%emt 0:03:05]} 12. c5 {[%emt 0:00:41]} Be7 {[%emt 0:00:25]} 13. Nc3 {[%emt 0:00:14]} O-O {[%emt 0:00:42]} 14. fxe4 {[%emt 0:00:08]} Nxe4 {[%emt 0:06:39]} 15. Nxe4 {[%emt 0:00:08]} dxe4 {[%emt 0:01:05]} 16. Bd2 {[%emt 0:00:30]} Qd5 {[%emt 0:10:41]} 17. Ba5 {[%emt 0:11:52]} Bd8 {[%emt 0:05:57]} 18. b4 {[%emt 0:01:58]} Rf7 {[%emt 0:04:40]} 19. g4 {[%emt 0:08:05]} f4 {[%emt 0:07:07]} 20. exf4 {[%emt 0:00:36]} Bf6 {[%emt 0:00:23]} 21. Rad1 {[%emt 0:01:54]} Bxd4+ {[%emt 0:01:55]} 22. Kh2 {[%emt 0:00:35]} Rd8 {[%emt 0:01:28]} 23. Kg3 {[%emt 0:01:09]} g5 {[%emt 0:15:01]} 24. fxg5 {[%emt 0:04:01]} Rf3+ {[%emt 0:02:18]} 25. Kh4 {[%emt 0:06:21]} h6 {[%emt 0:05:29]} 26. Rxf3 {[%emt 0:00:28]} hxg5+ {[%emt 0:00:23]} 27. Kh5 {[%emt 0:00:51]} Kg7 {[%emt 0:00:44]} 28. Rf5 {[%emt 0:00:43]} Bf6 {[%emt 0:00:09]} 29. Rdxd5 {[%emt 0:01:27]} Rh8# {[%emt 0:00:06]} 0-1

[Event "LTU-chT 2020"]
[Site "Vilnius"]
[Date "2020.09.27"]
[Round "6.8"]
[White "Mickevicius, Juras"]
[Black "Vaznonis, Vytautas"]
[Result "0-1"]
[ECO "D12"]
[WhiteElo "2277"]
[BlackElo "2378"]
[Annotator "ChessBase"]
[PlyCount "76"]
[EventDate "2020.09.25"]
[EventType "team-tourn"]
[EventCountry "LTU"]
[SourceTitle "playchess.com"]
[Source "ChessBase"]
[SourceQuality "1"]
[TimeControl "40/5400+30:1800+30"]

1. d4 {[%emt 0:00:00]} d5 {[%emt 0:00:00]} 2. c4 {[%emt 0:00:00]} c6 {[%emt 0:00:00]} 3. Nf3 {[%emt 0:00:00]} Nf6 {[%emt 0:00:00]} 4. e3 {[%emt 0:00:00]} Bf5 {[%emt 0:00:03]} 5. Nc3 {[%emt 0:00:00]} e6 {[%emt 0:00:14]} 6. Nh4 {[%emt 0:00:02]} Be4 {[%emt 0:00:16]} 7. f3 {[%emt 0:00:14]} Bg6 {[%emt 0:00:09]} 8. Qb3 {[%emt 0:00:15]} Qc7 {[%emt 0:00:10]} 9. Bd2 {[%emt 0:01:24]} Be7 {[%emt 0:00:08]} 10. Rc1 {[%emt 0:02:40]} Nbd7 {[%emt 0:01:09]} 11. cxd5 {[%emt 0:10:10]} exd5 {[%emt 0:01:18]} 12. g3 {[%emt 0:01:56]} Nb6 {[%emt 0:05:49]} 13. Be2 {[%emt 0:02:25]} Qd7 {[%emt 0:07:00]} 14. O-O {[%emt 0:02:26]} Rd8 {[%emt 0:06:16]} 15. a4 {[%emt 0:07:18]} Nc8 {[%emt 0:08:46]} 16. a5 {[%emt 0:01:48]} O-O {[%emt 0:09:44]} 17. Na4 {[%emt 0:06:59]} Nd6 {[%emt 0:06:56]} 18. Nc5 {[%emt 0:08:53]} Qc7 {[%emt 0:01:12]} 19. Nxg6 {[%emt 0:01:37]} hxg6 {[%emt 0:00:12]} 20. Bd3 {[%emt 0:01:29]} Nd7 {[%emt 0:28:09]} 21. Na4 {[%emt 0:20:10]} Nf6 {[%emt 0:00:35]} 22. Qc2 {[%emt 0:00:54]} a6 {[%emt 0:06:55]} 23. Nc5 {[%emt 0:03:24]} Nd7 {[%emt 0:08:27]} 24. Nb3 {[%emt 0:00:12]} Bg5 {[%emt 0:01:36]} 25. e4 {[%emt 0:03:45]} Bxd2 {[%emt 0:00:20]} 26. Qxd2 {[%emt 0:00:01]} dxe4 {[%emt 0:00:25]} 27. fxe4 {[%emt 0:00:03]} Nb5 {[%emt 0:01:28]} 28. Qe2 {[%emt 0:05:05]} Nxd4 {[%emt 0:03:52]} 29. Nxd4 {[%emt 0:00:19]} Ne5 {[%emt 0:00:01]} 30. Nxc6 {[%emt 0:10:16]} Nxc6 {[%emt 0:01:05]} 31. Bc4 {[%emt 0:01:29]} Qxa5 {[%emt 0:00:29]} 32. Bd5 {[%emt 0:00:52]} Nb4 {[%emt 0:01:17]} 33. Bxf7+ {[%emt 0:06:58]} Rxf7 {[%emt 0:00:11]} 34. Qc4 {[%emt 0:00:01]} Qb6+ {[%emt 0:00:32]} 35. Kh1 {[%emt 0:00:47]} Rdf8 {[%emt 0:00:31]} 36. Rxf7 {[%emt 0:01:22]} Rxf7 {[%emt 0:00:04]} 37. Rf1 {[%emt 0:00:02]} Qc7 {[%emt 0:00:13]} 38. Qe6 {[%emt 0:00:47]} Qd7 {[%emt 0:00:51]} 0-1

[Event "LTU-chT 2020"]
[Site "Vilnius"]
[Date "2020.09.27"]
[Round "6.9"]
[White "Butvilas, Aistis"]
[Black "Viskelis, Darius"]
[Result "1-0"]
[ECO "D35"]
[WhiteElo "2057"]
[BlackElo "2226"]
[Annotator "ChessBase"]
[PlyCount "47"]
[EventDate "2020.09.25"]
[EventType "team-tourn"]
[EventCountry "LTU"]
[SourceTitle "playchess.com"]
[Source "ChessBase"]
[SourceQuality "1"]
[TimeControl "40/5400+30:1800+30"]

1. d4 {[%emt 0:00:00]} Nf6 {[%emt 0:00:01]} 2. c4 {[%emt 0:00:00]} e6 {[%emt 0:00:08]} 3. Nc3 {[%emt 0:00:00]} d5 {[%emt 0:00:11]} 4. cxd5 {[%emt 0:00:00]} Nxd5 {[%emt 0:00:10]} 5. e4 {[%emt 0:00:01]} Nxc3 {[%emt 0:00:06]} 6. bxc3 {[%emt 0:00:04]} c5 {[%emt 0:00:06]} 7. Nf3 {[%emt 0:00:52]} cxd4 {[%emt 0:00:12]} 8. cxd4 {[%emt 0:00:03]} Bb4+ {[%emt 0:00:07]} 9. Bd2 {[%emt 0:00:06]} Bxd2+ {[%emt 0:00:03]} 10. Qxd2 {[%emt 0:00:06]} O-O {[%emt 0:00:05]} 11. Bc4 {[%emt 0:00:18]} Nd7 {[%emt 0:03:26]} 12. O-O {[%emt 0:02:40]} Nb6 {[%emt 0:01:00]} 13. Bb3 {[%emt 0:01:24]} Bd7 {[%emt 0:00:29]} 14. a4 {[%emt 0:02:38]} a5 {[%emt 0:02:35]} 15. d5 {[%emt 0:05:13]} exd5 {[%emt 0:01:25]} 16. exd5 {[%emt 0:00:02]} Bf5 {[%emt 0:05:13]} 17. Rfe1 {[%emt 0:09:53]} Qd6 {[%emt 0:06:27]} 18. Qd4 Rfd8 {[%emt 0:02:17]} 19. Re5 {[%emt 0:08:55]} Bg6 {[%emt 0:01:17]} 20. Rae1 {[%emt 0:06:10]} Nd7 {[%emt 0:04:35]} 21. Re7 {[%emt 0:09:00]} Nc5 {[%emt 0:01:48]} 22. Bc4 {[%emt 0:04:00]} b6 {[%emt 0:07:14]} 23. Bb5 {[%emt 0:02:18]} Ne6 {[%emt 0:18:25]} 24. R1xe6 {[%emt 0:00:48]} 1-0